[Event "*** Titled Tuesday Blitz"]
[Site "Chess.com"]
[Date "2020.12.01"]
[Round "7"]
[White "Witik"]
[Black "Beca95"]
[Result "0-1"]
[WhiteElo "2612"]
[BlackElo "2893"]
[TimeControl "180+1"]
[EndTime "11:16:18 PST"]
[Termination "Beca95 won on time"]

1. d4 {[%clk 0:03:00.9]} 1... Nf6 {[%clk 0:02:59.7]} 2. Bf4 {[%clk 0:03:00]}
2... d6 {[%clk 0:02:57.3]} 3. Nf3 {[%clk 0:02:59.5]} 3... Nbd7 {[%clk
0:02:57.1]} 4. e3 {[%clk 0:02:53.8]} 4... h6 {[%clk 0:02:53.7]} 5. h3 {[%clk
0:02:48.6]} 5... g5 {[%clk 0:02:48]} 6. Bh2 {[%clk 0:02:46.5]} 6... c5 {[%clk
0:02:42.5]} 7. Nbd2 {[%clk 0:02:26.9]} 7... Rg8 {[%clk 0:02:40.2]} 8. c3 {[%clk
0:02:20]} 8... h5 {[%clk 0:02:38.9]} 9. Bc4 {[%clk 0:02:11]} 9... g4 {[%clk
0:02:36.7]} 10. hxg4 {[%clk 0:02:10.5]} 10... hxg4 {[%clk 0:02:37.6]} 11. Nh4
{[%clk 0:02:10]} 11... d5 {[%clk 0:02:25.8]} 12. Be2 {[%clk 0:02:04]} 12... e6
{[%clk 0:02:20.9]} 13. Qa4 {[%clk 0:01:15.9]} 13... a6 {[%clk 0:02:01]} 14.
O-O-O {[%clk 0:01:12.6]} 14... c4 {[%clk 0:01:28.2]} 15. e4 {[%clk 0:01:08]}
15... b5 {[%clk 0:01:26.7]} 16. Qc2 {[%clk 0:01:08.1]} 16... b4 {[%clk
0:01:21.2]} 17. cxb4 {[%clk 0:01:08]} 17... Bxb4 {[%clk 0:01:12.4]} 18. exd5
{[%clk 0:01:06.2]} 18... Nxd5 {[%clk 0:01:05.8]} 19. Bg3 {[%clk 0:00:56]} 19...
N7f6 {[%clk 0:01:04.2]} 20. Nxc4 {[%clk 0:00:54.5]} 20... Bb7 {[%clk 0:00:46.9]}
21. Kb1 {[%clk 0:00:53]} 21... Kf8 {[%clk 0:00:33.3]} 22. Be5 {[%clk 0:00:25.7]}
22... a5 {[%clk 0:00:20]} 23. f3 {[%clk 0:00:22.3]} 23... g3 {[%clk 0:00:18.8]}
24. Rh3 {[%clk 0:00:20]} 24... a4 {[%clk 0:00:16.1]} 25. Qc1 {[%clk 0:00:20.1]}
25... a3 {[%clk 0:00:15.4]} 26. Qh6+ {[%clk 0:00:19.8]} 26... Ke8 {[%clk
0:00:14.9]} 27. Rxg3 {[%clk 0:00:13.2]} 27... Rxg3 {[%clk 0:00:14]} 28. Bxg3
{[%clk 0:00:14.1]} 28... axb2 {[%clk 0:00:14.1]} 29. Rd3 {[%clk 0:00:13.5]}
29... Ba6 {[%clk 0:00:11.4]} 30. Rb3 {[%clk 0:00:13.5]} 30... Bxc4 {[%clk
0:00:10.8]} 31. Bxc4 {[%clk 0:00:13.5]} 31... Qa5 {[%clk 0:00:10.3]} 32. Rxb2
{[%clk 0:00:12]} 32... Nc3+ {[%clk 0:00:09.9]} 33. Kc2 {[%clk 0:00:12]} 33...
Qa4+ {[%clk 0:00:10.1]} 34. Bb3 {[%clk 0:00:11.7]} 34... Qc6 {[%clk 0:00:10.3]}
35. Kd3 {[%clk 0:00:09.9]} 35... Ncd5 {[%clk 0:00:09.3]} 36. Be5 {[%clk
0:00:08.4]} 36... Qb5+ {[%clk 0:00:08.9]} 37. Kc2 {[%clk 0:00:08.4]} 37... Rc8+
{[%clk 0:00:08.7]} 38. Kb1 {[%clk 0:00:08.5]} 38... Qf1+ {[%clk 0:00:07.7]} 0-1

[Event "*** Titled Tuesday Blitz"]
[Site "Chess.com"]
[Date "2020.12.01"]
[Round "7"]
[White "Sviridov_Valery"]
[Black "igorkovalenko"]
[Result "1-0"]
[WhiteElo "2924"]
[BlackElo "2786"]
[TimeControl "180+1"]
[EndTime "11:16:20 PST"]
[Termination "Sviridov_Valery won by resignation"]

1. d4 {[%clk 0:03:00.9]} 1... Nf6 {[%clk 0:02:59.8]} 2. Nf3 {[%clk 0:02:56.4]}
2... d5 {[%clk 0:02:59.4]} 3. e3 {[%clk 0:02:55.6]} 3... e6 {[%clk 0:02:57.8]}
4. Bd3 {[%clk 0:02:55.1]} 4... b6 {[%clk 0:02:55.5]} 5. O-O {[%clk 0:02:54.3]}
5... Bb7 {[%clk 0:02:56]} 6. Nbd2 {[%clk 0:02:53.9]} 6... Nbd7 {[%clk
0:02:42.2]} 7. Qe2 {[%clk 0:02:51.6]} 7... Ne4 {[%clk 0:02:42.2]} 8. c4 {[%clk
0:02:50.7]} 8... Bd6 {[%clk 0:02:39.2]} 9. b3 {[%clk 0:02:49.4]} 9... f5 {[%clk
0:02:30.6]} 10. Bb2 {[%clk 0:02:47.2]} 10... Qf6 {[%clk 0:02:30.3]} 11. Rac1
{[%clk 0:02:37.9]} 11... Qh6 {[%clk 0:02:23.3]} 12. cxd5 {[%clk 0:02:36.8]}
12... exd5 {[%clk 0:02:23.4]} 13. Ne5 {[%clk 0:02:37.1]} 13... Rd8 {[%clk
0:02:01.8]} 14. f3 {[%clk 0:02:22.1]} 14... Nxd2 {[%clk 0:01:59.9]} 15. Qxd2
{[%clk 0:02:23]} 15... O-O {[%clk 0:01:57.2]} 16. f4 {[%clk 0:02:22.5]} 16...
Qe6 {[%clk 0:01:55.2]} 17. b4 {[%clk 0:02:20.8]} 17... Nf6 {[%clk 0:01:53.7]}
18. b5 {[%clk 0:02:19.9]} 18... Bc8 {[%clk 0:01:45.4]} 19. Bc3 {[%clk 0:02:15]}
19... Bd7 {[%clk 0:01:40.9]} 20. Bb4 {[%clk 0:02:14.1]} 20... Be8 {[%clk
0:01:40.9]} 21. Rc2 {[%clk 0:02:04.1]} 21... Ne4 {[%clk 0:01:17.9]} 22. Bxe4
{[%clk 0:02:03.7]} 22... fxe4 {[%clk 0:01:18]} 23. a4 {[%clk 0:02:04]} 23... g5
{[%clk 0:01:15.4]} 24. fxg5 {[%clk 0:01:41.6]} 24... Rxf1+ {[%clk 0:01:16.3]}
25. Kxf1 {[%clk 0:01:42.5]} 25... Bh5 {[%clk 0:00:56.2]} 26. Bxd6 {[%clk
0:01:26.4]} 26... cxd6 {[%clk 0:00:55.7]} 27. Nc6 {[%clk 0:01:27]} 27... Rf8+
{[%clk 0:00:54.8]} 28. Kg1 {[%clk 0:01:27.6]} 28... Kg7 {[%clk 0:00:28.6]} 29.
Qe1 {[%clk 0:01:27]} 29... Qg4 {[%clk 0:00:26.3]} 30. Rf2 {[%clk 0:01:20.9]}
30... Rxf2 {[%clk 0:00:25.5]} 31. Qxf2 {[%clk 0:01:21.8]} 31... Qxg5 {[%clk
0:00:20.8]} 32. h3 {[%clk 0:01:19.2]} 32... Bd1 {[%clk 0:00:20.6]} 33. Nxa7
{[%clk 0:00:55.5]} 33... Bxa4 {[%clk 0:00:20.5]} 34. Nc8 {[%clk 0:00:55.9]}
34... Bxb5 {[%clk 0:00:20.6]} 35. Nxd6 {[%clk 0:00:55.9]} 35... Bc4 {[%clk
0:00:12.9]} 36. Ne8+ {[%clk 0:00:54.8]} 36... Kg8 {[%clk 0:00:12.2]} 37. Nf6+
{[%clk 0:00:42.6]} 37... Kg7 {[%clk 0:00:12]} 38. Nd7 {[%clk 0:00:43]} 38... Qe7
{[%clk 0:00:09.1]} 39. Qg3+ {[%clk 0:00:42.8]} 39... Kh8 {[%clk 0:00:06]} 40.
Nxb6 {[%clk 0:00:42]} 40... Bb3 {[%clk 0:00:03.2]} 41. Nc8 {[%clk 0:00:38.5]}
41... Qf6 {[%clk 0:00:03]} 42. Nd6 {[%clk 0:00:38.3]} 42... h6 {[%clk
0:00:02.5]} 43. Kh2 {[%clk 0:00:38.1]} 43... Kh7 {[%clk 0:00:02.6]} 44. Qg4
{[%clk 0:00:36.9]} 44... Ba4 {[%clk 0:00:02.5]} 45. Qf5+ {[%clk 0:00:32.2]}
45... Qxf5 {[%clk 0:00:02.9]} 46. Nxf5 {[%clk 0:00:33.1]} 46... Bd7 {[%clk
0:00:02.6]} 47. g4 {[%clk 0:00:31.4]} 47... Bxf5 {[%clk 0:00:01.6]} 48. gxf5
{[%clk 0:00:32.3]} 48... Kg7 {[%clk 0:00:02.1]} 49. Kg3 {[%clk 0:00:32.8]} 49...
Kf6 {[%clk 0:00:02.6]} 50. Kf4 {[%clk 0:00:33.7]} 50... h5 {[%clk 0:00:03]} 51.
h4 {[%clk 0:00:34]} 51... Kf7 {[%clk 0:00:03.9]} 52. Kg5 {[%clk 0:00:34.3]} 1-0

[Event "*** Titled Tuesday Blitz"]
[Site "Chess.com"]
[Date "2020.12.01"]
[Round "7"]
[White "1977Ivan"]
[Black "Rytenko_V"]
[Result "1-0"]
[WhiteElo "2678"]
[BlackElo "2530"]
[TimeControl "180+1"]
[EndTime "11:16:20 PST"]
[Termination "1977Ivan won on time"]

1. d4 {[%clk 0:03:00.9]} 1... Nf6 {[%clk 0:02:59.3]} 2. Nf3 {[%clk 0:03:01.2]}
2... c6 {[%clk 0:03:00.2]} 3. Nbd2 {[%clk 0:02:57]} 3... g6 {[%clk 0:03:00.7]}
4. e4 {[%clk 0:02:56.5]} 4... d6 {[%clk 0:03:00.8]} 5. Bd3 {[%clk 0:02:53.3]}
5... Bg7 {[%clk 0:03:01.2]} 6. O-O {[%clk 0:02:53.8]} 6... O-O {[%clk
0:03:01.8]} 7. a4 {[%clk 0:02:53.3]} 7... a5 {[%clk 0:02:57]} 8. Re1 {[%clk
0:02:52.2]} 8... Na6 {[%clk 0:02:56.9]} 9. c3 {[%clk 0:02:52.4]} 9... Nd7 {[%clk
0:02:55.5]} 10. Nc4 {[%clk 0:02:46.9]} 10... Nc7 {[%clk 0:02:50.3]} 11. Bg5
{[%clk 0:02:40.9]} 11... Ne6 {[%clk 0:02:47.2]} 12. Bh4 {[%clk 0:02:35.7]} 12...
h6 {[%clk 0:02:40.1]} 13. Bc2 {[%clk 0:02:33.5]} 13... d5 {[%clk 0:02:34.4]} 14.
exd5 {[%clk 0:02:31.7]} 14... cxd5 {[%clk 0:02:35.3]} 15. Nce5 {[%clk
0:02:31.3]} 15... Nxe5 {[%clk 0:02:31.5]} 16. Nxe5 {[%clk 0:02:32.2]} 16... g5
{[%clk 0:01:40.9]} 17. Bg3 {[%clk 0:02:30]} 17... f5 {[%clk 0:01:40.8]} 18. Qd3
{[%clk 0:02:22.5]} 18... b6 {[%clk 0:01:33]} 19. f3 {[%clk 0:02:06.4]} 19... Ba6
{[%clk 0:01:29.1]} 20. Qd2 {[%clk 0:02:06.3]} 20... f4 {[%clk 0:01:28.8]} 21.
Bf2 {[%clk 0:02:04.8]} 21... Qd6 {[%clk 0:01:20.7]} 22. Bb1 {[%clk 0:01:56.5]}
22... Rf6 {[%clk 0:01:09.9]} 23. Qc2 {[%clk 0:01:54.6]} 23... Nf8 {[%clk
0:01:10.3]} 24. Ng4 {[%clk 0:01:36.4]} 24... Re6 {[%clk 0:01:08.3]} 25. Ba2
{[%clk 0:01:36.7]} 25... Bc8 {[%clk 0:00:58.3]} 26. Ne5 {[%clk 0:01:28.2]} 26...
Rf6 {[%clk 0:00:28.6]} 27. h4 {[%clk 0:01:23]} 27... Bf5 {[%clk 0:00:28.2]} 28.
Qe2 {[%clk 0:01:19.8]} 28... e6 {[%clk 0:00:28.5]} 29. c4 {[%clk 0:01:13.4]}
29... dxc4 {[%clk 0:00:25.6]} 30. Bxc4 {[%clk 0:01:10.2]} 30... Rd8 {[%clk
0:00:20.1]} 31. Rac1 {[%clk 0:01:09.3]} 31... Ng6 {[%clk 0:00:19.5]} 32. hxg5
{[%clk 0:01:08.3]} 32... hxg5 {[%clk 0:00:19.6]} 33. Ba2 {[%clk 0:01:05]} 33...
Qb4 {[%clk 0:00:18.1]} 34. Nc6 {[%clk 0:01:00.7]} 34... Qxa4 {[%clk 0:00:16.7]}
35. b3 {[%clk 0:01:00.5]} 35... Qa3 {[%clk 0:00:14.2]} 36. Nxd8 {[%clk
0:00:59.4]} 36... g4 {[%clk 0:00:14.8]} 37. Rc8 {[%clk 0:00:51.4]} 37... Kh7
{[%clk 0:00:10.9]} 38. fxg4 {[%clk 0:00:50.1]} 38... f3 {[%clk 0:00:11.3]} 39.
Qxf3 {[%clk 0:00:35.2]} 39... Qxa2 {[%clk 0:00:04.9]} 40. gxf5 {[%clk
0:00:33.9]} 40... Rxf5 {[%clk 0:00:05.8]} 41. Qh3+ {[%clk 0:00:33.8]} 41... Bh6
{[%clk 0:00:05.7]} 42. Rc7+ {[%clk 0:00:32]} 42... Kg8 {[%clk 0:00:05.2]} 43.
Rf1 {[%clk 0:00:20.4]} 43... Qd2 {[%clk 0:00:03.6]} 44. Nf7 {[%clk 0:00:17.6]}
1-0

[Event "*** Titled Tuesday Blitz"]
[Site "Chess.com"]
[Date "2020.12.01"]
[Round "7"]
[White "LastHeroJr"]
[Black "Tsyhanchuk_Stanislav"]
[Result "1-0"]
[WhiteElo "2378"]
[BlackElo "2226"]
[TimeControl "180+1"]
[EndTime "11:16:21 PST"]
[Termination "LastHeroJr won by checkmate"]

1. e4 {[%clk 0:02:54.3]} 1... c6 {[%clk 0:02:58.9]} 2. Nf3 {[%clk 0:02:54.1]}
2... d5 {[%clk 0:02:59.8]} 3. d3 {[%clk 0:02:54.4]} 3... dxe4 {[%clk 0:02:58.3]}
4. dxe4 {[%clk 0:02:55.3]} 4... Qxd1+ {[%clk 0:02:58.2]} 5. Kxd1 {[%clk
0:02:56.2]} 5... Bg4 {[%clk 0:02:58.1]} 6. Be2 {[%clk 0:02:55.8]} 6... g6 {[%clk
0:02:57]} 7. Nfd2 {[%clk 0:02:54.5]} 7... Bxe2+ {[%clk 0:02:55]} 8. Kxe2 {[%clk
0:02:55.4]} 8... Bg7 {[%clk 0:02:55.2]} 9. Nc4 {[%clk 0:02:50]} 9... Na6 {[%clk
0:02:54.4]} 10. c3 {[%clk 0:02:17.2]} 10... O-O-O {[%clk 0:02:51.5]} 11. Bf4
{[%clk 0:02:05.8]} 11... Nf6 {[%clk 0:02:38.9]} 12. f3 {[%clk 0:02:04.1]} 12...
Nc5 {[%clk 0:02:34.5]} 13. Be3 {[%clk 0:01:47.8]} 13... Nfd7 {[%clk 0:01:55.1]}
14. a4 {[%clk 0:01:24.4]} 14... b6 {[%clk 0:01:48.1]} 15. Nbd2 {[%clk
0:00:59.9]} 15... Kb7 {[%clk 0:01:36.6]} 16. a5 {[%clk 0:00:55.3]} 16... Ne6
{[%clk 0:01:30.7]} 17. Ra3 {[%clk 0:00:36.3]} 17... Ne5 {[%clk 0:01:10.4]} 18.
axb6 {[%clk 0:00:33.3]} 18... axb6 {[%clk 0:01:03.8]} 19. Nxb6 {[%clk
0:00:29.7]} 19... Nc7 {[%clk 0:00:50.6]} 20. c4 {[%clk 0:00:22.8]} 20... e6
{[%clk 0:00:21]} 21. Rha1 {[%clk 0:00:21.7]} 21... c5 {[%clk 0:00:17.1]} 22.
Bxc5 {[%clk 0:00:18.2]} 22... Kc6 {[%clk 0:00:17.3]} 23. Be3 {[%clk 0:00:18.4]}
23... Rb8 {[%clk 0:00:14.7]} 24. b4 {[%clk 0:00:13.5]} 24... Rhd8 {[%clk
0:00:07.1]} 25. b5+ {[%clk 0:00:12.9]} 25... Kd6 {[%clk 0:00:07.7]} 26. c5+
{[%clk 0:00:08.7]} 26... Ke7 {[%clk 0:00:07.9]} 27. Ra7 {[%clk 0:00:08.8]} 27...
Ke8 {[%clk 0:00:03.6]} 28. Rxc7 {[%clk 0:00:08.5]} 28... Nd7 {[%clk 0:00:02.6]}
29. Nxd7 {[%clk 0:00:07.6]} 29... Rxd7 {[%clk 0:00:03.5]} 30. Rxd7 {[%clk
0:00:08.4]} 30... Bxa1 {[%clk 0:00:03.1]} 31. Ra7 {[%clk 0:00:05]} 31... Be5
{[%clk 0:00:02.4]} 32. b6 {[%clk 0:00:04.8]} 32... Rc8 {[%clk 0:00:02.9]} 33. b7
{[%clk 0:00:04.4]} 33... Rc7 {[%clk 0:00:03.3]} 34. b8=Q+ {[%clk 0:00:03.8]}
34... Ke7 {[%clk 0:00:04.2]} 35. Rxc7+ {[%clk 0:00:03.6]} 35... Bxc7 {[%clk
0:00:04.9]} 36. Qxc7+ {[%clk 0:00:04.5]} 36... Kf6 {[%clk 0:00:05.8]} 37. c6
{[%clk 0:00:05.1]} 37... Kg7 {[%clk 0:00:06.7]} 38. Bd4+ {[%clk 0:00:05]} 38...
Kh6 {[%clk 0:00:06.6]} 39. Qf4+ {[%clk 0:00:04.9]} 39... Kh5 {[%clk 0:00:07.5]}
40. Bf6 {[%clk 0:00:04.6]} 40... g5 {[%clk 0:00:06.9]} 41. Qxg5# {[%clk
0:00:04.9]} 1-0

[Event "*** Titled Tuesday Blitz"]
[Site "Chess.com"]
[Date "2020.12.01"]
[Round "7"]
[White "vovachesss"]
[Black "hansen"]
[Result "1/2-1/2"]
[WhiteElo "2624"]
[BlackElo "2897"]
[TimeControl "180+1"]
[EndTime "11:16:22 PST"]
[Termination "Game drawn by repetition"]

1. d4 {[%clk 0:03:00.4]} 1... Nf6 {[%clk 0:01:20.8]} 2. Nc3 {[%clk 0:02:31.1]}
2... d5 {[%clk 0:01:20.3]} 3. Bf4 {[%clk 0:02:30.8]} 3... a6 {[%clk 0:01:20.6]}
4. Nf3 {[%clk 0:02:25.3]} 4... c5 {[%clk 0:01:20.2]} 5. e3 {[%clk 0:02:23.4]}
5... Nc6 {[%clk 0:01:19.8]} 6. dxc5 {[%clk 0:02:21.9]} 6... Bg4 {[%clk
0:01:20.1]} 7. Be2 {[%clk 0:02:19.4]} 7... e6 {[%clk 0:01:18.4]} 8. Na4 {[%clk
0:02:19.7]} 8... Bxc5 {[%clk 0:01:18]} 9. Nxc5 {[%clk 0:02:20.6]} 9... Qa5+
{[%clk 0:01:18.3]} 10. c3 {[%clk 0:02:21.2]} 10... Qxc5 {[%clk 0:01:18.7]} 11.
O-O {[%clk 0:02:21.7]} 11... O-O {[%clk 0:01:18.8]} 12. h3 {[%clk 0:02:10.8]}
12... Bh5 {[%clk 0:01:18]} 13. Rc1 {[%clk 0:02:08.8]} 13... Rfd8 {[%clk
0:01:17.3]} 14. Ne5 {[%clk 0:02:00.6]} 14... Bxe2 {[%clk 0:01:15.4]} 15. Qxe2
{[%clk 0:02:01.5]} 15... Ne4 {[%clk 0:01:12.9]} 16. Rfd1 {[%clk 0:01:50.5]}
16... Rac8 {[%clk 0:01:10.7]} 17. Qh5 {[%clk 0:01:37.9]} 17... Nxe5 {[%clk
0:01:09.6]} 18. Bxe5 {[%clk 0:01:38.2]} 18... f6 {[%clk 0:01:07.9]} 19. Bh2
{[%clk 0:01:25.6]} 19... Qc4 {[%clk 0:01:01.8]} 20. f3 {[%clk 0:00:59.4]} 20...
Ng5 {[%clk 0:00:58.9]} 21. b3 {[%clk 0:00:43.7]} 21... Qe2 {[%clk 0:00:53.1]}
22. Qg4 {[%clk 0:00:40.1]} 22... Rxc3 {[%clk 0:00:38.5]} 23. Bf4 {[%clk
0:00:27.7]} 23... Rxc1 {[%clk 0:00:23.1]} 24. Rxc1 {[%clk 0:00:27.8]} 24... Qb2
{[%clk 0:00:09.5]} 25. Rc7 {[%clk 0:00:26]} 25... Qb1+ {[%clk 0:00:09.6]} 26.
Kh2 {[%clk 0:00:26]} 26... Qg6 {[%clk 0:00:08.6]} 27. Bxg5 {[%clk 0:00:24.7]}
27... fxg5 {[%clk 0:00:08.8]} 28. Rxb7 {[%clk 0:00:24]} 28... e5 {[%clk
0:00:06]} 29. Rd7 {[%clk 0:00:22.5]} 29... Rf8 {[%clk 0:00:01.9]} 30. Rxd5
{[%clk 0:00:21.1]} 30... Qf6 {[%clk 0:00:01.9]} 31. Qe4 {[%clk 0:00:20.5]} 31...
Re8 {[%clk 0:00:02.5]} 32. Rc5 {[%clk 0:00:19.8]} 32... h5 {[%clk 0:00:02.6]}
33. Rc6 {[%clk 0:00:20.1]} 33... Qf7 {[%clk 0:00:02.3]} 34. Rxa6 {[%clk
0:00:19.7]} 34... g4 {[%clk 0:00:01.6]} 35. fxg4 {[%clk 0:00:19.4]} 35... hxg4
{[%clk 0:00:02.5]} 36. Qxg4 {[%clk 0:00:20]} 36... e4 {[%clk 0:00:02.5]} 37. Rd6
{[%clk 0:00:19.3]} 37... Qc7 {[%clk 0:00:02.3]} 38. Qg3 {[%clk 0:00:19.8]} 38...
Rf8 {[%clk 0:00:02.6]} 39. Rg6 {[%clk 0:00:19.1]} 39... Qe7 {[%clk 0:00:02.8]}
40. Rg4 {[%clk 0:00:19]} 40... Rf5 {[%clk 0:00:02.9]} 41. Qb8+ {[%clk
0:00:18.9]} 41... Kf7 {[%clk 0:00:03]} 42. Qa8 {[%clk 0:00:17.9]} 42... Qd6+
{[%clk 0:00:02.8]} 43. Kg1 {[%clk 0:00:16.7]} 43... Qd1+ {[%clk 0:00:02.9]} 44.
Kh2 {[%clk 0:00:17.3]} 44... Qd6+ {[%clk 0:00:03.6]} 45. Kg1 {[%clk 0:00:10.5]}
45... Qd1+ {[%clk 0:00:03.6]} 46. Kh2 {[%clk 0:00:09.9]} 46... Qd6+ {[%clk
0:00:04.3]} 1/2-1/2

[Event "*** Titled Tuesday Blitz"]
[Site "Chess.com"]
[Date "2020.12.01"]
[Round "7"]
[White "Sergienko_Sergey"]
[Black "Sanyura"]
[Result "0-1"]
[WhiteElo "2357"]
[BlackElo "2529"]
[TimeControl "180+1"]
[EndTime "11:16:25 PST"]
[Termination "Sanyura won on time"]

1. e4 {[%clk 0:02:59.2]} 1... c5 {[%clk 0:02:53.6]} 2. Nf3 {[%clk 0:02:58.3]}
2... e6 {[%clk 0:02:53.8]} 3. d3 {[%clk 0:02:57.5]} 3... d5 {[%clk 0:02:53.3]}
4. Qe2 {[%clk 0:02:56.6]} 4... Nf6 {[%clk 0:02:50.7]} 5. g3 {[%clk 0:02:55.6]}
5... Nc6 {[%clk 0:02:50.4]} 6. Bg2 {[%clk 0:02:53.3]} 6... g6 {[%clk 0:02:38]}
7. O-O {[%clk 0:02:51.2]} 7... Bg7 {[%clk 0:02:37.5]} 8. Re1 {[%clk 0:02:46]}
8... h6 {[%clk 0:02:29.2]} 9. Nbd2 {[%clk 0:02:34.4]} 9... b6 {[%clk 0:02:28]}
10. Nf1 {[%clk 0:02:12.4]} 10... Ba6 {[%clk 0:02:26.1]} 11. exd5 {[%clk
0:02:03.3]} 11... Nxd5 {[%clk 0:02:27]} 12. Ne3 {[%clk 0:01:57.5]} 12... Nxe3
{[%clk 0:02:22.7]} 13. fxe3 {[%clk 0:01:45.7]} 13... O-O {[%clk 0:02:20.6]} 14.
Rb1 {[%clk 0:01:37.8]} 14... Nb4 {[%clk 0:01:51.4]} 15. a3 {[%clk 0:01:35.4]}
15... Nxc2 {[%clk 0:01:43.9]} 16. Rd1 {[%clk 0:01:33]} 16... c4 {[%clk
0:01:33.7]} 17. dxc4 {[%clk 0:01:15.3]} 17... Bxc4 {[%clk 0:01:22.1]} 18. Qxc2
{[%clk 0:01:15]} 18... Qc8 {[%clk 0:01:14.5]} 19. b3 {[%clk 0:01:08]} 19... Bd5
{[%clk 0:01:14.4]} 20. Qxc8 {[%clk 0:01:06.1]} 20... Rfxc8 {[%clk 0:01:15.3]}
21. Nd4 {[%clk 0:00:59.4]} 21... Bxg2 {[%clk 0:01:11]} 22. Kxg2 {[%clk 0:00:59]}
22... e5 {[%clk 0:01:10.2]} 23. Nb5 {[%clk 0:00:52.7]} 23... a6 {[%clk
0:01:07.3]} 24. Nd6 {[%clk 0:00:47.7]} 24... Rc2+ {[%clk 0:01:04.9]} 25. Rd2
{[%clk 0:00:19.4]} 25... Rxd2+ {[%clk 0:00:58.9]} 26. Bxd2 {[%clk 0:00:19.2]}
26... Rd8 {[%clk 0:00:59.6]} 27. Nc4 {[%clk 0:00:11.4]} 27... b5 {[%clk
0:00:59.3]} 28. Ba5 {[%clk 0:00:08.7]} 28... Rd3 {[%clk 0:00:59.3]} 29. Nb6
{[%clk 0:00:07.6]} 29... Rxe3 {[%clk 0:00:57.8]} 30. a4 {[%clk 0:00:07.8]} 30...
e4 {[%clk 0:00:52.8]} 31. axb5 {[%clk 0:00:07.5]} 31... axb5 {[%clk 0:00:53.7]}
32. b4 {[%clk 0:00:07.4]} 32... Bd4 {[%clk 0:00:50.4]} 33. Rd1 {[%clk 0:00:07]}
33... Be5 {[%clk 0:00:25.3]} 34. Nd5 {[%clk 0:00:06]} 34... Re2+ {[%clk
0:00:25.6]} 35. Kg1 {[%clk 0:00:05.2]} 35... f5 {[%clk 0:00:25.8]} 36. Bc7
{[%clk 0:00:04.2]} 36... Bb2 {[%clk 0:00:23.2]} 37. Bb6 {[%clk 0:00:03.6]} 37...
g5 {[%clk 0:00:20.9]} 38. Bc5 {[%clk 0:00:03.6]} 38... Kf7 {[%clk 0:00:19.1]}
39. Nb6 {[%clk 0:00:02.9]} 39... f4 {[%clk 0:00:18.4]} 40. g4 {[%clk 0:00:02.7]}
40... f3 {[%clk 0:00:18.6]} 41. Rd7+ {[%clk 0:00:02.5]} 41... Ke6 {[%clk
0:00:18.8]} 42. Rd6+ {[%clk 0:00:02.3]} 42... Ke5 {[%clk 0:00:19]} 43. Nd7+
{[%clk 0:00:02]} 43... Kf4 {[%clk 0:00:19.5]} 0-1

[Event "*** Titled Tuesday Blitz"]
[Site "Chess.com"]
[Date "2020.12.01"]
[Round "7"]
[White "Pogosian_Manvel"]
[Black "Abdimalik_Abdisalimov"]
[Result "1-0"]
[WhiteElo "2397"]
[BlackElo "2682"]
[TimeControl "180+1"]
[EndTime "11:16:26 PST"]
[Termination "Pogosian_Manvel won on time"]

1. Nf3 {[%clk 0:03:00.9]} 1... Nf6 {[%clk 0:02:58.6]} 2. d4 {[%clk 0:03:00.9]}
2... e6 {[%clk 0:02:55.5]} 3. c4 {[%clk 0:02:59.5]} 3... d5 {[%clk 0:02:51.8]}
4. Nc3 {[%clk 0:02:57.9]} 4... Be7 {[%clk 0:02:46.5]} 5. Bg5 {[%clk 0:02:56]}
5... O-O {[%clk 0:02:43.1]} 6. e3 {[%clk 0:02:56.2]} 6... b6 {[%clk 0:02:35.2]}
7. Bd3 {[%clk 0:02:55.8]} 7... Bb7 {[%clk 0:02:34.6]} 8. O-O {[%clk 0:02:54.1]}
8... c5 {[%clk 0:02:28]} 9. cxd5 {[%clk 0:02:52.9]} 9... exd5 {[%clk 0:02:27]}
10. Ne5 {[%clk 0:02:52.9]} 10... Ne4 {[%clk 0:02:18.9]} 11. Bxe7 {[%clk
0:02:36.7]} 11... Qxe7 {[%clk 0:02:17.4]} 12. Nxe4 {[%clk 0:02:24.1]} 12... dxe4
{[%clk 0:02:16.1]} 13. Bc4 {[%clk 0:02:24.3]} 13... Nc6 {[%clk 0:02:06.3]} 14.
Nxc6 {[%clk 0:02:10.5]} 14... Bxc6 {[%clk 0:02:05.7]} 15. dxc5 {[%clk
0:02:07.2]} 15... Qxc5 {[%clk 0:02:00.8]} 16. Rc1 {[%clk 0:02:06.8]} 16... Rfd8
{[%clk 0:01:23.8]} 17. Qb3 {[%clk 0:01:54.5]} 17... Qe7 {[%clk 0:01:08.7]} 18.
Bxf7+ {[%clk 0:01:52.5]} 18... Qxf7 {[%clk 0:01:08.5]} 19. Qxf7+ {[%clk
0:01:42.7]} 19... Kxf7 {[%clk 0:01:09.4]} 20. Rxc6 {[%clk 0:01:43]} 20... Rd2
{[%clk 0:01:08.7]} 21. Rb1 {[%clk 0:01:31.7]} 21... Rad8 {[%clk 0:01:06.6]} 22.
g4 {[%clk 0:01:25.6]} 22... R8d7 {[%clk 0:01:01.5]} 23. Rc4 {[%clk 0:01:20.5]}
23... Re7 {[%clk 0:00:56.2]} 24. a4 {[%clk 0:01:18.5]} 24... Kf6 {[%clk
0:00:55.3]} 25. Kg2 {[%clk 0:01:17.4]} 25... Kg5 {[%clk 0:00:50.7]} 26. Kg3
{[%clk 0:01:15.9]} 26... g6 {[%clk 0:00:45.6]} 27. h4+ {[%clk 0:01:12.9]} 27...
Kf6 {[%clk 0:00:45.4]} 28. b4 {[%clk 0:01:07.4]} 28... Ra2 {[%clk 0:00:40.3]}
29. b5 {[%clk 0:01:02.9]} 29... h5 {[%clk 0:00:33]} 30. Rbb4 {[%clk 0:00:57.4]}
30... hxg4 {[%clk 0:00:29.6]} 31. Rxe4 {[%clk 0:00:56.4]} 31... Rxe4 {[%clk
0:00:19.2]} 32. Rxe4 {[%clk 0:00:56.1]} 32... g5 {[%clk 0:00:19.8]} 33. hxg5+
{[%clk 0:00:54]} 33... Kxg5 {[%clk 0:00:19.7]} 34. Rxg4+ {[%clk 0:00:53.9]}
34... Kf5 {[%clk 0:00:20.2]} 35. Rd4 {[%clk 0:00:50.5]} 35... Ke5 {[%clk
0:00:19.3]} 36. f4+ {[%clk 0:00:49.3]} 36... Kf5 {[%clk 0:00:18.8]} 37. Kf3
{[%clk 0:00:49.2]} 37... Ra3 {[%clk 0:00:17.9]} 38. Rd5+ {[%clk 0:00:44.4]}
38... Ke6 {[%clk 0:00:17.3]} 39. Re5+ {[%clk 0:00:44.2]} 39... Kf6 {[%clk
0:00:17]} 40. Re4 {[%clk 0:00:43.5]} 40... Kf5 {[%clk 0:00:15.7]} 41. Rd4 {[%clk
0:00:41.2]} 41... Kf6 {[%clk 0:00:10]} 42. Ke4 {[%clk 0:00:37.3]} 42... Ke6
{[%clk 0:00:06.6]} 43. f5+ {[%clk 0:00:37.6]} 43... Kf6 {[%clk 0:00:06.6]} 44.
Kf4 {[%clk 0:00:38]} 44... Ra1 {[%clk 0:00:03.9]} 45. Rd6+ {[%clk 0:00:33.6]}
45... Ke7 {[%clk 0:00:03.5]} 46. Re6+ {[%clk 0:00:33.7]} 46... Kf7 {[%clk
0:00:02.8]} 47. e4 {[%clk 0:00:33.1]} 47... Rxa4 {[%clk 0:00:01.6]} 48. Rc6
{[%clk 0:00:33]} 48... Ra1 {[%clk 0:00:01.7]} 49. Rc7+ {[%clk 0:00:28.2]} 1-0